[Event "Betsys MČR v online bleskovém šachu 2021"]
[Site "Chess.com"]
[Date "2021.04.17"]
[Round "4"]
[White "MiroslavBucek"]
[Black "jsulc"]
[Result "0-1"]
[WhiteElo "1622"]
[BlackElo "2084"]
[TimeControl "180+1"]
[EndTime "9:33:17 PDT"]
[Termination "Uživatel jsulc zvítězil matem"]

1. e4 {[%clk 0:03:00.9]} 1... e5 {[%clk 0:02:59.5]} 2. Nf3 {[%clk 0:02:58.8]}
2... Nc6 {[%clk 0:02:59.9]} 3. Bb5 {[%clk 0:02:57.9]} 3... Bc5 {[%clk
0:02:58.9]} 4. O-O {[%clk 0:02:57.1]} 4... Nge7 {[%clk 0:02:58]} 5. c3 {[%clk
0:02:55.2]} 5... Bb6 {[%clk 0:02:58.2]} 6. d4 {[%clk 0:02:53.6]} 6... exd4
{[%clk 0:02:59.1]} 7. cxd4 {[%clk 0:02:53.4]} 7... d5 {[%clk 0:02:59.6]} 8. e5
{[%clk 0:02:47.7]} 8... Bg4 {[%clk 0:02:59.3]} 9. Bg5 {[%clk 0:02:39.5]} 9...
O-O {[%clk 0:02:56.5]} 10. Bxc6 {[%clk 0:02:37.6]} 10... bxc6 {[%clk 0:02:55.1]}
11. h3 {[%clk 0:02:34.6]} 11... Bxf3 {[%clk 0:02:54.7]} 12. gxf3 {[%clk
0:02:23]} 12... Qd7 {[%clk 0:02:54]} 13. Kh2 {[%clk 0:02:17.5]} 13... Nf5 {[%clk
0:02:50.8]} 14. Be3 {[%clk 0:02:05.2]} 14... Rae8 {[%clk 0:02:43]} 15. Rg1
{[%clk 0:02:03.1]} 15... f6 {[%clk 0:02:39.3]} 16. f4 {[%clk 0:01:59.8]} 16...
fxe5 {[%clk 0:02:32.3]} 17. fxe5 {[%clk 0:01:58.2]} 17... Nxe3 {[%clk
0:02:19.6]} 18. fxe3 {[%clk 0:01:49.3]} 18... Rf2+ {[%clk 0:02:19.1]} 19. Rg2
{[%clk 0:01:49.2]} 19... Ref8 {[%clk 0:02:19]} 20. Qg1 {[%clk 0:01:41.1]} 20...
R8f3 {[%clk 0:01:58]} 21. Rxf2 {[%clk 0:01:40.1]} 21... Qxh3# {[%clk 0:01:56.2]}
0-1

[Event "Betsys MČR v online bleskovém šachu 2021"]
[Site "Chess.com"]
[Date "2021.04.17"]
[Round "4"]
[White "l_pavlasek"]
[Black "Akdub"]
[Result "0-1"]
[WhiteElo "1677"]
[BlackElo "2096"]
[TimeControl "180+1"]
[EndTime "9:33:28 PDT"]
[Termination "Uživatel Akdub zvítězil po vzdání soupeře"]

1. e4 {[%clk 0:03:00.9]} 1... e6 {[%clk 0:02:58.9]} 2. Nf3 {[%clk 0:03:00]} 2...
d5 {[%clk 0:02:59.2]} 3. exd5 {[%clk 0:02:58.7]} 3... exd5 {[%clk 0:03:00.1]} 4.
d4 {[%clk 0:02:58.5]} 4... Bd6 {[%clk 0:03:00.4]} 5. Bd3 {[%clk 0:02:56.5]} 5...
Ne7 {[%clk 0:03:00.5]} 6. O-O {[%clk 0:02:55.9]} 6... Nd7 {[%clk 0:03:01]} 7. c3
{[%clk 0:02:55.6]} 7... O-O {[%clk 0:02:59.8]} 8. Qc2 {[%clk 0:02:54.8]} 8... h6
{[%clk 0:02:57.4]} 9. Be3 {[%clk 0:02:36]} 9... Re8 {[%clk 0:02:57.3]} 10. Qd2
{[%clk 0:02:35.5]} 10... Nf8 {[%clk 0:02:52]} 11. Bxh6 {[%clk 0:02:22.5]} 11...
gxh6 {[%clk 0:02:49.1]} 12. Qxh6 {[%clk 0:02:21.7]} 12... Neg6 {[%clk
0:02:49.2]} 13. Ng5 {[%clk 0:02:13.7]} 13... Qf6 {[%clk 0:02:36.8]} 14. Nd2
{[%clk 0:02:01.7]} 14... Qg7 {[%clk 0:02:33.4]} 15. Qh5 {[%clk 0:01:43.2]} 15...
Nf4 {[%clk 0:02:23.9]} 16. Qh7+ {[%clk 0:01:26.1]} 16... Nxh7 {[%clk 0:02:20.7]}
17. Bxh7+ {[%clk 0:01:23]} 17... Kh8 {[%clk 0:02:16.1]} 18. h4 {[%clk
0:01:22.6]} 18... f6 {[%clk 0:02:11]} 0-1

[Event "Betsys MČR v online bleskovém šachu 2021"]
[Site "Chess.com"]
[Date "2021.04.17"]
[Round "4"]
[White "pudltomik"]
[Black "ritchi12"]
[Result "0-1"]
[WhiteElo "760"]
[BlackElo "1157"]
[TimeControl "180+1"]
[EndTime "9:33:37 PDT"]
[Termination "Uživatel ritchi12 zvítězil matem"]

1. e4 {[%clk 0:03:00.9]} 1... e5 {[%clk 0:02:59.2]} 2. Nf3 {[%clk 0:02:54.9]}
2... Nc6 {[%clk 0:02:59.2]} 3. Nc3 {[%clk 0:02:54.2]} 3... Nf6 {[%clk 0:02:59]}
4. Bc4 {[%clk 0:02:52.8]} 4... Nd4 {[%clk 0:02:49.5]} 5. Nxd4 {[%clk 0:02:51]}
5... exd4 {[%clk 0:02:48.4]} 6. Nd5 {[%clk 0:02:50.6]} 6... Nxd5 {[%clk
0:02:47.3]} 7. Bxd5 {[%clk 0:02:50.2]} 7... c6 {[%clk 0:02:45.8]} 8. Bc4 {[%clk
0:02:48.4]} 8... d5 {[%clk 0:02:43.3]} 9. exd5 {[%clk 0:02:47.4]} 9... cxd5
{[%clk 0:02:42.9]} 10. Bb5+ {[%clk 0:02:45.9]} 10... Bd7 {[%clk 0:02:42.9]} 11.
Bd3 {[%clk 0:02:44.5]} 11... Be7 {[%clk 0:02:42]} 12. O-O {[%clk 0:02:44]} 12...
O-O {[%clk 0:02:41.3]} 13. c3 {[%clk 0:02:40.5]} 13... dxc3 {[%clk 0:02:40.6]}
14. dxc3 {[%clk 0:02:40.2]} 14... Bg5 {[%clk 0:02:37.4]} 15. Bxg5 {[%clk
0:02:39.2]} 15... Qxg5 {[%clk 0:02:37.4]} 16. g3 {[%clk 0:02:36.8]} 16... Bh3
{[%clk 0:02:35.7]} 17. Re1 {[%clk 0:02:33.5]} 17... Bg4 {[%clk 0:02:34.7]} 18.
Be2 {[%clk 0:02:30.9]} 18... Bxe2 {[%clk 0:02:33.7]} 19. Rxe2 {[%clk 0:02:30.3]}
19... Rae8 {[%clk 0:02:33.5]} 20. Rxe8 {[%clk 0:02:29]} 20... Rxe8 {[%clk
0:02:33.7]} 21. Qd2 {[%clk 0:02:24]} 21... Qxd2 {[%clk 0:02:30.8]} 22. Rf1
{[%clk 0:02:22.5]} 22... Re1 {[%clk 0:02:29.5]} 23. h4 {[%clk 0:02:17.7]} 23...
Rxf1+ {[%clk 0:02:28.9]} 24. Kxf1 {[%clk 0:02:17.4]} 24... Qd1+ {[%clk
0:02:28.3]} 25. Kg2 {[%clk 0:02:17.5]} 25... f5 {[%clk 0:02:27.6]} 26. Kh3
{[%clk 0:02:14]} 26... Kf7 {[%clk 0:02:27.8]} 27. g4 {[%clk 0:02:12.4]} 27...
fxg4+ {[%clk 0:02:26.7]} 28. Kg3 {[%clk 0:02:10]} 28... Qf3+ {[%clk 0:02:26.4]}
29. Kh2 {[%clk 0:02:09.3]} 29... Qh3+ {[%clk 0:02:24]} 30. Kg1 {[%clk
0:02:08.8]} 30... Qxh4 {[%clk 0:02:23.7]} 31. Kf1 {[%clk 0:02:07.7]} 31... Qh1+
{[%clk 0:02:22.5]} 32. Ke2 {[%clk 0:02:07.5]} 32... Kf6 {[%clk 0:02:22.8]} 33.
b4 {[%clk 0:02:05.6]} 33... Kf5 {[%clk 0:02:23.1]} 34. a4 {[%clk 0:02:03.9]}
34... Kf4 {[%clk 0:02:21.5]} 35. Kd3 {[%clk 0:02:03.7]} 35... Qe4+ {[%clk
0:02:19.7]} 36. Kd2 {[%clk 0:02:02.9]} 36... Kf3 {[%clk 0:02:18.5]} 37. Kc1
{[%clk 0:02:01.2]} 37... Kxf2 {[%clk 0:02:18.3]} 38. Kb2 {[%clk 0:01:59.5]}
38... g3 {[%clk 0:02:18.2]} 39. Kb3 {[%clk 0:01:59.3]} 39... g2 {[%clk
0:02:18.2]} 40. b5 {[%clk 0:01:59.4]} 40... Qc4+ {[%clk 0:02:17.1]} 41. Ka3
{[%clk 0:01:58.4]} 41... Qxc3+ {[%clk 0:02:16.7]} 42. Ka2 {[%clk 0:01:57.2]}
42... g1=Q {[%clk 0:02:15.7]} 43. a5 {[%clk 0:01:54.1]} 43... Qga1# {[%clk
0:02:15.4]} 0-1

[Event "Betsys MČR v online bleskovém šachu 2021"]
[Site "Chess.com"]
[Date "2021.04.17"]
[Round "4"]
[White "Lukuluss88"]
[Black "marosino"]
[Result "1-0"]
[WhiteElo "2001"]
[BlackElo "1585"]
[TimeControl "180+1"]
[EndTime "9:33:49 PDT"]
[Termination "Uživatel Lukuluss88 zvítězil po vzdání soupeře"]

1. c4 {[%clk 0:03:00.9]} 1... c5 {[%clk 0:02:58.6]} 2. Nc3 {[%clk 0:03:01.1]}
2... Nc6 {[%clk 0:02:58.2]} 3. g3 {[%clk 0:03:00.8]} 3... g6 {[%clk 0:02:58]} 4.
Bg2 {[%clk 0:03:01.1]} 4... Bg7 {[%clk 0:02:57.9]} 5. e4 {[%clk 0:03:01.4]} 5...
Nb4 {[%clk 0:02:52.1]} 6. d3 {[%clk 0:03:00.7]} 6... e6 {[%clk 0:02:48.9]} 7. a3
{[%clk 0:03:00.5]} 7... Nc6 {[%clk 0:02:48.1]} 8. Be3 {[%clk 0:02:59.5]} 8... d6
{[%clk 0:02:44.4]} 9. Nge2 {[%clk 0:02:58.6]} 9... Nge7 {[%clk 0:02:43.9]} 10.
O-O {[%clk 0:02:58.3]} 10... O-O {[%clk 0:02:43.1]} 11. Rb1 {[%clk 0:02:56.6]}
11... Rb8 {[%clk 0:02:42.9]} 12. b4 {[%clk 0:02:54.6]} 12... cxb4 {[%clk
0:02:41.5]} 13. axb4 {[%clk 0:02:54.5]} 13... b6 {[%clk 0:02:41.4]} 14. f4
{[%clk 0:02:50.7]} 14... Bb7 {[%clk 0:02:40.9]} 15. d4 {[%clk 0:02:44.7]} 15...
e5 {[%clk 0:02:38.7]} 16. fxe5 {[%clk 0:02:42.4]} 16... dxe5 {[%clk 0:02:36.5]}
17. d5 {[%clk 0:02:42.5]} 17... Nd4 {[%clk 0:02:36.4]} 18. Nxd4 {[%clk
0:02:36.9]} 18... exd4 {[%clk 0:02:36.3]} 19. Bxd4 {[%clk 0:02:37.1]} 19... Qc7
{[%clk 0:02:29.2]} 20. Bxg7 {[%clk 0:02:34]} 20... Kxg7 {[%clk 0:02:28.9]} 21.
Qd4+ {[%clk 0:02:33.8]} 21... Kg8 {[%clk 0:02:28.2]} 22. c5 {[%clk 0:02:32.2]}
22... bxc5 {[%clk 0:02:25.9]} 23. bxc5 {[%clk 0:02:32.3]} 23... Qa5 {[%clk
0:02:14.6]} 24. Rb5 {[%clk 0:02:27.2]} 24... Qd8 {[%clk 0:02:10.8]} 25. Rfb1
{[%clk 0:02:25.7]} 25... Ba6 {[%clk 0:02:08.4]} 26. Rxb8 {[%clk 0:02:24.8]}
26... Qxb8 {[%clk 0:02:07.2]} 27. Rxb8 {[%clk 0:02:24.5]} 27... Rxb8 {[%clk
0:02:05.1]} 28. c6 {[%clk 0:02:20.5]} 28... Rd8 {[%clk 0:02:02.7]} 29. e5 {[%clk
0:02:19.5]} 29... Nxc6 {[%clk 0:02:01.3]} 30. Qa4 {[%clk 0:02:12]} 30... Nb8
{[%clk 0:01:56.8]} 31. d6 {[%clk 0:02:11.7]} 31... Rc8 {[%clk 0:01:45.3]} 32.
Nd5 {[%clk 0:02:04.1]} 32... Rc1+ {[%clk 0:01:43]} 33. Kf2 {[%clk 0:02:01.7]}
33... Rc2+ {[%clk 0:01:41.6]} 34. Qxc2 {[%clk 0:02:01]} 1-0

[Event "Betsys MČR v online bleskovém šachu 2021"]
[Site "Chess.com"]
[Date "2021.04.17"]
[Round "4"]
[White "Nevimjakhrat"]
[Black "tondapesek"]
[Result "1-0"]
[WhiteElo "1488"]
[BlackElo "1057"]
[TimeControl "180+1"]
[EndTime "9:33:53 PDT"]
[Termination "Uživatel Nevimjakhrat zvítězil po vzdání soupeře"]

1. c4 {[%clk 0:03:00.9]} 1... e5 {[%clk 0:02:59.3]} 2. Nc3 {[%clk 0:02:52.2]}
2... c5 {[%clk 0:02:58]} 3. g3 {[%clk 0:02:51.6]} 3... Nc6 {[%clk 0:02:57.7]} 4.
Bg2 {[%clk 0:02:51.8]} 4... Nf6 {[%clk 0:02:55.9]} 5. e4 {[%clk 0:02:51.3]} 5...
d6 {[%clk 0:02:55.9]} 6. Nge2 {[%clk 0:02:51.6]} 6... Be6 {[%clk 0:02:55.3]} 7.
d3 {[%clk 0:02:49.7]} 7... h6 {[%clk 0:02:54.9]} 8. O-O {[%clk 0:02:49.6]} 8...
Be7 {[%clk 0:02:53.6]} 9. f4 {[%clk 0:02:47.1]} 9... exf4 {[%clk 0:02:52.5]} 10.
Bxf4 {[%clk 0:02:46.7]} 10... O-O {[%clk 0:02:51.8]} 11. Nd5 {[%clk 0:02:45.7]}
11... Bxd5 {[%clk 0:02:51.5]} 12. cxd5 {[%clk 0:02:41.1]} 12... Ne5 {[%clk
0:02:50.9]} 13. d4 {[%clk 0:02:30.4]} 13... Neg4 {[%clk 0:02:45.9]} 14. h3
{[%clk 0:02:21.5]} 14... cxd4 {[%clk 0:02:39.9]} 15. hxg4 {[%clk 0:02:17.4]}
15... Nxg4 {[%clk 0:02:39.5]} 16. Nxd4 {[%clk 0:02:14.2]} 16... Ne5 {[%clk
0:02:39.2]} 17. Nf5 {[%clk 0:02:12.3]} 17... Ng6 {[%clk 0:02:36.3]} 18. Be3
{[%clk 0:02:03.7]} 18... Ne5 {[%clk 0:02:33.2]} 19. Bd4 {[%clk 0:02:01.3]} 19...
Bf6 {[%clk 0:02:32.4]} 20. Qb3 {[%clk 0:01:54.9]} 20... b6 {[%clk 0:02:31.1]}
21. Qb4 {[%clk 0:01:51.7]} 21... Nd3 {[%clk 0:02:11.5]} 22. Bxf6 {[%clk
0:01:35.3]} 22... Nxb4 {[%clk 0:02:09.1]} 23. Bxd8 {[%clk 0:01:34.6]} 23...
Rfxd8 {[%clk 0:02:08.8]} 24. Ne7+ {[%clk 0:01:19.1]} 24... Kf8 {[%clk
0:02:06.8]} 25. Nc6 {[%clk 0:01:17.3]} 25... Re8 {[%clk 0:02:01.3]} 26. Nxb4
{[%clk 0:01:16.8]} 1-0

[Event "Betsys MČR v online bleskovém šachu 2021"]
[Site "Chess.com"]
[Date "2021.04.17"]
[Round "4"]
[White "g4g5g4g5"]
[Black "czechfant94"]
[Result "1-0"]
[WhiteElo "2004"]
[BlackElo "1608"]
[TimeControl "180+1"]
[EndTime "9:33:54 PDT"]
[Termination "Uživatel g4g5g4g5 zvítězil matem"]

1. e4 {[%clk 0:03:00.9]} 1... e5 {[%clk 0:02:59.3]} 2. f4 {[%clk 0:03:00]} 2...
exf4 {[%clk 0:02:58.6]} 3. Bc4 {[%clk 0:02:59.6]} 3... g5 {[%clk 0:02:57]} 4. d4
{[%clk 0:02:56.6]} 4... d6 {[%clk 0:02:55.9]} 5. h4 {[%clk 0:02:56.1]} 5... Be6
{[%clk 0:02:49.8]} 6. Bxe6 {[%clk 0:02:48.5]} 6... fxe6 {[%clk 0:02:49.2]} 7.
Qh5+ {[%clk 0:02:48.1]} 7... Kd7 {[%clk 0:02:41.8]} 8. hxg5 {[%clk 0:02:48]}
8... Qe7 {[%clk 0:02:39.5]} 9. Nf3 {[%clk 0:02:47.3]} 9... Nc6 {[%clk
0:02:36.3]} 10. Bxf4 {[%clk 0:02:44.9]} 10... Rd8 {[%clk 0:02:33.2]} 11. Nc3
{[%clk 0:02:43.7]} 11... Kc8 {[%clk 0:02:32.8]} 12. O-O-O {[%clk 0:02:42.8]}
12... Bg7 {[%clk 0:02:32.8]} 13. Be3 {[%clk 0:02:39.2]} 13... d5 {[%clk
0:02:21.9]} 14. exd5 {[%clk 0:02:25]} 14... exd5 {[%clk 0:02:20]} 15. Rhe1
{[%clk 0:02:24.7]} 15... Qe8 {[%clk 0:02:18.1]} 16. Qxe8 {[%clk 0:02:18.2]}
16... Rxe8 {[%clk 0:02:18]} 17. Nxd5 {[%clk 0:02:17.6]} 17... Nge7 {[%clk
0:02:14.6]} 18. Nf6 {[%clk 0:02:11.9]} 18... Bxf6 {[%clk 0:02:13]} 19. gxf6
{[%clk 0:02:11.2]} 19... Nd5 {[%clk 0:02:13.2]} 20. Bh6 {[%clk 0:02:06.6]} 20...
Nxf6 {[%clk 0:02:10.6]} 21. Bg7 {[%clk 0:02:03.2]} 21... Rhf8 {[%clk 0:01:53.1]}
22. Bxf8 {[%clk 0:02:01.6]} 22... Rxf8 {[%clk 0:01:53.2]} 23. Ne5 {[%clk
0:01:55.4]} 23... Nb4 {[%clk 0:01:46]} 24. a3 {[%clk 0:01:49.2]} 24... Nbd5
{[%clk 0:01:45.9]} 25. Rf1 {[%clk 0:01:46.8]} 25... Rg8 {[%clk 0:01:43.8]} 26.
c4 {[%clk 0:01:42.8]} 26... Ne3 {[%clk 0:01:39.6]} 27. Rxf6 {[%clk 0:01:42.4]}
27... Nxd1 {[%clk 0:01:36.6]} 28. Kxd1 {[%clk 0:01:41.9]} 28... Rxg2 {[%clk
0:01:37.2]} 29. Rf8# {[%clk 0:01:41]} 1-0

[Event "Betsys MČR v online bleskovém šachu 2021"]
[Site "Chess.com"]
[Date "2021.04.17"]
[Round "4"]
[White "Michelangelo111"]
[Black "Miky2610"]
[Result "1-0"]
[WhiteElo "2127"]
[BlackElo "1840"]
[TimeControl "180+1"]
[EndTime "9:33:57 PDT"]
[Termination "Uživatel Michelangelo111 zvítězil po vzdání soupeře"]

1. Nf3 {[%clk 0:03:00.9]} 1... c6 {[%clk 0:02:57.8]} 2. g3 {[%clk 0:03:01.8]}
2... d5 {[%clk 0:02:56.8]} 3. Bg2 {[%clk 0:03:02.7]} 3... Nf6 {[%clk 0:02:54.6]}
4. d4 {[%clk 0:03:02.5]} 4... Bf5 {[%clk 0:02:52.4]} 5. O-O {[%clk 0:03:02.7]}
5... e6 {[%clk 0:02:51.2]} 6. c4 {[%clk 0:03:01.6]} 6... Be7 {[%clk 0:02:50]} 7.
Qb3 {[%clk 0:03:00.2]} 7... Qc7 {[%clk 0:02:41.9]} 8. Bf4 {[%clk 0:02:58.2]}
8... Bd6 {[%clk 0:02:39.3]} 9. Bxd6 {[%clk 0:02:56.5]} 9... Qxd6 {[%clk
0:02:37.2]} 10. Qxb7 {[%clk 0:02:52.4]} 10... O-O {[%clk 0:02:20.8]} 11. Qxa8
{[%clk 0:02:39.2]} 11... Qd7 {[%clk 0:02:17.2]} 12. Ne5 {[%clk 0:02:28.9]} 12...
Qc7 {[%clk 0:02:15.2]} 13. cxd5 {[%clk 0:02:22.7]} 13... exd5 {[%clk 0:02:11.6]}
14. Rc1 {[%clk 0:02:18]} 14... Bd7 {[%clk 0:02:03.9]} 15. Nxd7 {[%clk 0:02:06]}
15... Nfxd7 {[%clk 0:01:57.4]} 16. Na3 {[%clk 0:01:50.5]} 16... Rc8 {[%clk
0:01:55.3]} 17. Nb5 {[%clk 0:01:41.2]} 17... Qb6 {[%clk 0:01:51.8]} 18. Nxa7
{[%clk 0:01:30.4]} 18... c5 {[%clk 0:01:29.5]} 19. Nxc8 {[%clk 0:01:27.3]} 1-0

[Event "Betsys MČR v online bleskovém šachu 2021"]
[Site "Chess.com"]
[Date "2021.04.17"]
[Round "4"]
[White "jankrelina07"]
[Black "DrDANDog"]
[Result "1-0"]
[WhiteElo "1548"]
[BlackElo "1763"]
[TimeControl "180+1"]
[EndTime "9:34:03 PDT"]
[Termination "Uživatel jankrelina07 zvítězil po vzdání soupeře"]

1. d4 {[%clk 0:03:00.9]} 1... Nf6 {[%clk 0:02:59.8]} 2. Bf4 {[%clk 0:03:00.6]}
2... g6 {[%clk 0:02:59.4]} 3. Nf3 {[%clk 0:02:59.7]} 3... Bg7 {[%clk 0:02:59.6]}
4. e3 {[%clk 0:02:59.4]} 4... Nh5 {[%clk 0:03:00.1]} 5. Bg3 {[%clk 0:02:58.8]}
5... Nxg3 {[%clk 0:02:58.2]} 6. hxg3 {[%clk 0:02:58.5]} 6... d5 {[%clk
0:02:58.8]} 7. c3 {[%clk 0:02:58]} 7... Nc6 {[%clk 0:02:58]} 8. Bd3 {[%clk
0:02:58]} 8... Bg4 {[%clk 0:02:56.6]} 9. Nbd2 {[%clk 0:02:57.5]} 9... Qd6 {[%clk
0:02:54.9]} 10. Qc2 {[%clk 0:02:54.5]} 10... e5 {[%clk 0:02:50.8]} 11. dxe5
{[%clk 0:02:53.3]} 11... Nxe5 {[%clk 0:02:51]} 12. Nxe5 {[%clk 0:02:53]} 12...
Qxe5 {[%clk 0:02:47.1]} 13. Qa4+ {[%clk 0:02:47.3]} 13... Bd7 {[%clk 0:02:44.7]}
14. Qb3 {[%clk 0:02:45.2]} 14... O-O-O {[%clk 0:02:40.4]} 15. Nf3 {[%clk
0:02:43.8]} 15... Qd6 {[%clk 0:02:30.6]} 16. O-O-O {[%clk 0:02:43.3]} 16... Qc6
{[%clk 0:02:23.5]} 17. Be2 {[%clk 0:02:29.9]} 17... Bg4 {[%clk 0:02:20.5]} 18.
Ne5 {[%clk 0:02:20]} 18... Bxe5 {[%clk 0:02:20]} 19. Bxg4+ {[%clk 0:02:19.3]}
19... f5 {[%clk 0:02:19.2]} 20. Bf3 {[%clk 0:02:19.1]} 20... Qa6 {[%clk
0:02:02.4]} 21. Bxd5 {[%clk 0:02:10.8]} 21... c6 {[%clk 0:02:02.2]} 22. Bf3
{[%clk 0:02:08.5]} 22... Rd3 {[%clk 0:01:49.4]} 23. a3 {[%clk 0:01:57.2]} 23...
Rhd8 {[%clk 0:01:46.9]} 24. Rxd3 {[%clk 0:01:50.3]} 24... Qxd3 {[%clk
0:01:43.2]} 25. Rd1 {[%clk 0:01:49]} 25... Qb5 {[%clk 0:01:37.8]} 26. Qe6+
{[%clk 0:01:47.7]} 26... Kc7 {[%clk 0:01:32.3]} 27. Qe7+ {[%clk 0:01:42.2]} 1-0

[Event "Betsys MČR v online bleskovém šachu 2021"]
[Site "Chess.com"]
[Date "2021.04.17"]
[Round "4"]
[White "pavelchrz"]
[Black "Sfreedom01"]
[Result "1-0"]
[WhiteElo "1709"]
[BlackElo "1332"]
[TimeControl "180+1"]
[EndTime "9:34:08 PDT"]
[Termination "Uživatel pavelchrz zvítězil po vzdání soupeře"]

1. e4 {[%clk 0:03:00.9]} 1... e5 {[%clk 0:02:59.6]} 2. Nf3 {[%clk 0:03:00.9]}
2... d6 {[%clk 0:02:59.7]} 3. d4 {[%clk 0:02:57.2]} 3... exd4 {[%clk 0:02:59.6]}
4. c3 {[%clk 0:02:57.4]} 4... dxc3 {[%clk 0:02:59]} 5. Nxc3 {[%clk 0:02:57.3]}
5... Nf6 {[%clk 0:02:59.3]} 6. Bc4 {[%clk 0:02:56]} 6... Be6 {[%clk 0:02:57.8]}
7. Bxe6 {[%clk 0:02:53.9]} 7... fxe6 {[%clk 0:02:57.8]} 8. Ng5 {[%clk
0:02:53.7]} 8... Qd7 {[%clk 0:02:45.6]} 9. Qb3 {[%clk 0:02:49.8]} 9... d5 {[%clk
0:02:34.5]} 10. exd5 {[%clk 0:02:42.9]} 10... Nxd5 {[%clk 0:02:31]} 11. Qxb7
{[%clk 0:02:39.9]} 11... Nxc3 {[%clk 0:02:22.9]} 12. bxc3 {[%clk 0:02:33.7]}
12... Be7 {[%clk 0:02:17.7]} 13. Qxa8 {[%clk 0:02:29.1]} 13... O-O {[%clk
0:02:16.5]} 14. O-O {[%clk 0:02:27]} 14... Nc6 {[%clk 0:02:11.8]} 15. Qb7 {[%clk
0:02:23.7]} 15... Rb8 {[%clk 0:02:03.1]} 16. Qa6 {[%clk 0:02:21]} 16... Rb6
{[%clk 0:01:56.6]} 17. Qe2 {[%clk 0:02:15.9]} 17... Bd6 {[%clk 0:01:50.2]} 18.
Qh5 {[%clk 0:02:12.3]} 18... h6 {[%clk 0:01:43.6]} 19. Ne4 {[%clk 0:02:02.9]}
19... Be7 {[%clk 0:01:30.6]} 20. Bxh6 {[%clk 0:01:46.9]} 20... Qd3 {[%clk
0:01:08.9]} 21. Qg6 {[%clk 0:01:40.6]} 1-0

[Event "Betsys MČR v online bleskovém šachu 2021"]
[Site "Chess.com"]
[Date "2021.04.17"]
[Round "4"]
[White "Petulak08"]
[Black "AlenaSouralova"]
[Result "1-0"]
[WhiteElo "1240"]
[BlackElo "909"]
[TimeControl "180+1"]
[EndTime "9:34:09 PDT"]
[Termination "Uživatel Petulak08 zvítězil matem"]

1. d4 {[%clk 0:03:00.9]} 1... d5 {[%clk 0:02:58.8]} 2. c4 {[%clk 0:03:00]} 2...
e5 {[%clk 0:02:52.7]} 3. dxe5 {[%clk 0:02:58.4]} 3... d4 {[%clk 0:02:50.6]} 4.
Nf3 {[%clk 0:02:57.6]} 4... Nc6 {[%clk 0:02:49.3]} 5. Bf4 {[%clk 0:02:54.4]}
5... Bf5 {[%clk 0:02:46.5]} 6. Na3 {[%clk 0:02:49.1]} 6... Bb4+ {[%clk
0:02:44.2]} 7. Bd2 {[%clk 0:02:45.9]} 7... Nge7 {[%clk 0:02:30.9]} 8. Bxb4
{[%clk 0:02:43.8]} 8... Nxb4 {[%clk 0:02:28.1]} 9. Nxd4 {[%clk 0:02:41.1]} 9...
Qxd4 {[%clk 0:02:19.1]} 10. Qxd4 {[%clk 0:02:40.1]} 10... Nc2+ {[%clk
0:02:18.8]} 11. Nxc2 {[%clk 0:02:39.8]} 11... Bxc2 {[%clk 0:02:16.7]} 12. e4
{[%clk 0:02:38.2]} 12... Nc6 {[%clk 0:02:07.7]} 13. Qe3 {[%clk 0:02:28.9]} 13...
O-O-O {[%clk 0:02:00.1]} 14. Be2 {[%clk 0:02:23.3]} 14... h5 {[%clk 0:01:51]}
15. Rc1 {[%clk 0:02:20.5]} 15... Ba4 {[%clk 0:01:47.7]} 16. b3 {[%clk
0:02:19.7]} 16... Bxb3 {[%clk 0:01:43.8]} 17. axb3 {[%clk 0:02:19.7]} 17... Nb4
{[%clk 0:01:39.6]} 18. O-O {[%clk 0:02:14.5]} 18... Rdg8 {[%clk 0:01:34.5]} 19.
Qd2 {[%clk 0:02:00.6]} 19... Nc6 {[%clk 0:01:27.8]} 20. Ra1 {[%clk 0:01:57]}
20... g5 {[%clk 0:01:25.1]} 21. f3 {[%clk 0:01:48.5]} 21... h4 {[%clk
0:01:22.1]} 22. h3 {[%clk 0:01:48.3]} 22... g4 {[%clk 0:01:20.4]} 23. fxg4
{[%clk 0:01:47.7]} 23... Nxe5 {[%clk 0:01:14.5]} 24. Rxa7 {[%clk 0:01:46.3]}
24... Kb8 {[%clk 0:01:13.6]} 25. Rfa1 {[%clk 0:01:43.9]} 25... Kc8 {[%clk
0:01:11.8]} 26. Ra8# {[%clk 0:01:43.7]} 1-0

[Event "Betsys MČR v online bleskovém šachu 2021"]
[Site "Chess.com"]
[Date "2021.04.17"]
[Round "4"]
[White "Sorcercream"]
[Black "NikolaKusova"]
[Result "0-1"]
[WhiteElo "847"]
[BlackElo "866"]
[TimeControl "180+1"]
[EndTime "9:34:12 PDT"]
[Termination "Uživatel NikolaKusova zvítězil matem"]

1. d4 {[%clk 0:03:00.9]} 1... d5 {[%clk 0:02:59.3]} 2. Nf3 {[%clk 0:02:58.1]}
2... Nc6 {[%clk 0:02:56.4]} 3. e3 {[%clk 0:02:57.8]} 3... Bf5 {[%clk 0:02:52.7]}
4. c4 {[%clk 0:02:52.2]} 4... e6 {[%clk 0:02:49.3]} 5. Nc3 {[%clk 0:02:50.2]}
5... Nf6 {[%clk 0:02:43.5]} 6. Bd3 {[%clk 0:02:47.2]} 6... Bg6 {[%clk 0:02:39]}
7. O-O {[%clk 0:02:44.5]} 7... Bd6 {[%clk 0:02:34.2]} 8. c5 {[%clk 0:02:40.3]}
8... Bxd3 {[%clk 0:02:24.7]} 9. Qxd3 {[%clk 0:02:38.3]} 9... Bxh2+ {[%clk
0:02:09.3]} 10. Nxh2 {[%clk 0:02:35.4]} 10... O-O {[%clk 0:02:06]} 11. f4 {[%clk
0:02:29.3]} 11... b6 {[%clk 0:01:55.6]} 12. e4 {[%clk 0:02:26.8]} 12... dxe4
{[%clk 0:01:53.9]} 13. Nxe4 {[%clk 0:02:24.1]} 13... Nb4 {[%clk 0:01:48.8]} 14.
Nxf6+ {[%clk 0:02:21.8]} 14... gxf6 {[%clk 0:01:45.7]} 15. Qg3+ {[%clk
0:02:18.5]} 15... Kh8 {[%clk 0:01:44]} 16. f5 {[%clk 0:02:14.3]} 16... Nc2
{[%clk 0:01:39]} 17. Bh6 {[%clk 0:02:09.5]} 17... Rg8 {[%clk 0:01:35.6]} 18. Qf4
{[%clk 0:01:43.7]} 18... Nxa1 {[%clk 0:01:26.2]} 19. Rxa1 {[%clk 0:01:36.9]}
19... Qd5 {[%clk 0:01:13.4]} 20. fxe6 {[%clk 0:01:31.1]} 20... Qxg2# {[%clk
0:01:09.6]} 0-1